lending/lending_fUSD_20240509
["ID","MTS","AMOUNT","RATE_DAILY","PERIOD"]
[326687099,1715227836685,-165.01,0.0001299,2]
[326687100,1715227836695,-165.01,0.0001299,2]
[326687101,1715227836705,-165.01,0.0001299,2]
[326687102,1715227836715,-268.57141664,0.00012998,2]
[326687103,1715227836724,-509.82244301,0.00012999,2]
[326687104,1715227836734,-198252.53715484,0.00013,2]
[326687105,1715227836746,-1203.44564196,0.00013,2]
[326687106,1715227836758,-624.91528117,0.00013,2]
[326687107,1715227836770,-1552.8314616,0.00013,2]
[326687108,1715227836782,-937.64698523,0.00013,2]
[326687109,1715227843875,-316.46070613,0.000129,2]
[326687116,1715227843886,-165.01,0.0001299,2]
[326687119,1715227843896,-2296.77682313,0.00013,2]
[326687125,1715227843908,-3677.111732,0.00013,2]
[326687129,1715227843926,-3530.64173,0.00013,2]
[326687137,1715227843968,-31720.22830207,0.00013,2]
[326687140,1715227843982,-1235.9041344,0.00013,2]
[326687144,1715227843994,-451.185,0.00013,2]
[326687146,1715227844006,-681.83328982,0.00013,2]
[326687148,1715227844018,-28111.27473643,0.00013,2]
[326687150,1715227844029,-620.03403887,0.00013,2]
[326687151,1715227844040,-7526.91032345,0.00013,2]
[326687153,1715227844054,-644.07970229,0.00013,2]
[326687155,1715227844066,-918.18164461,0.00013,2]
[326687172,1715227846513,-523.82641156,0.00013,2]
[326687185,1715228575856,-267.96563009,0.00012286,2]
[326687186,1715228575882,-522.78326127,0.00012287,2]
[326687187,1715228575904,-17459.2848945,0.00012288,2]
[326687188,1715228575927,-150.0,0.00012389,2]
[326687189,1715228577711,7507.68436185,0.00012287,2]
[326687191,1715228669249,288.93006035,0.00012287,2]
[326687192,1715228687216,293.04370463,0.00012287,2]
[326687198,1715229034967,-522.78326127,0.00012536,2]
[326687200,1715229034977,-160.51942902,0.00012537,2]
[326687202,1715229034987,-230.56279689,0.00012673,2]
[326687203,1715229034999,-1331.575016,0.00012673,2]
[326687205,1715229035009,-3501.49195481,0.00012682,2]
[326687206,1715229035018,-180.0812139,0.000129,2]
[326687208,1715229035027,-330.1203,0.000129,2]
[326687209,1715229035037,-169.14327644,0.000129,2]
[326687210,1715229035046,-196.42269685,0.000129,2]
[326687211,1715229035056,-210.97380408,0.000129,2]
[326687212,1715229035073,-7608.33477258,0.000129,2]
[326687213,1715229035088,-173.57394587,0.000129,2]
[326687214,1715229035098,-164.82931594,0.000129,2]
[326687215,1715229035107,-815.6439247,0.000129,2]
[326687216,1715229035117,-159.38,0.00012914,2]
[326687217,1715229035131,-204.6723515,0.00012998,2]
[326687218,1715229035141,-267.82879663,0.00012998,2]
[326687219,1715229035151,-2051.36580475,0.00012998,2]
[326687220,1715229035163,-4221.89287758,0.00012998,2]
[326687221,1715229035175,-4449.11939954,0.00012998,2]
[326687222,1715229035187,-1340.29637158,0.00012998,2]
[326687223,1715229035196,-2239.45883534,0.00012999,2]
[326687224,1715229035206,-151.31765519,0.00013,2]
[326687225,1715229035220,-6169.52551127,0.00013,2]
[326687226,1715229035232,-10427.72537338,0.00013,2]
[326687227,1715229035243,-2000.0,0.00013,2]
[326687228,1715229035254,-7039.30463923,0.00013,2]
[326687229,1715229035265,-351.56071379,0.00013,2]
[326687230,1715229035276,-469.17,0.00013,2]
[326687231,1715229035288,-1309.77273727,0.00013,2]
[326687232,1715229035299,-7720.33953008,0.00013,2]
[326687233,1715229035312,-7520.2478751,0.00013,2]
[326687234,1715229046838,-522.78326127,0.00012999,2]
[326687238,1715229046847,-3441.24986263,0.00013,2]
[326687244,1715229046859,-8489.51083215,0.00013,2]
[326687247,1715229046870,-1108.16639877,0.00013,2]
[326687264,1715229047061,-420.43666373,0.00013,2]
[326687265,1715229047072,-324.95664198,0.00013,2]
[326687266,1715229047084,-1420.22526931,0.00013,2]
[326687267,1715229047095,-1064.37703201,0.00013,2]
[326687268,1715229047106,-3972.09929284,0.00013,2]
[326687269,1715229047117,-486.91192548,0.00013,2]
[326687270,1715229047130,-370.5341791,0.00013,2]
[326687271,1715229047143,-3364.15696614,0.00013,2]
[326687272,1715229047153,-288.6102,0.00013,2]
[326687273,1715229047164,-2944.99999991,0.00013,2]
[326687274,1715229047177,-1256.27820342,0.00013,2]
[326687275,1715229047188,-6356.42821254,0.00013,2]
[326687276,1715229047199,-2751.50835472,0.00013,2]
[326687277,1715229047211,-981.31097166,0.00013,2]
[326687278,1715229047223,-475.67259041,0.00013,2]
[326687279,1715229047234,-2063.79769676,0.00013,2]
[326687280,1715229047245,-796.75772232,0.00013,2]
[326687281,1715229047256,-899.20318369,0.00013,2]
[326687282,1715229047268,-2828.832935,0.00013,2]
[326687283,1715229047279,-2089.66046276,0.00013,2]
[326687284,1715229047294,-517.4652023,0.00013,2]
[326687285,1715229047307,-967.37861202,0.00013,2]
[326687286,1715229047319,-1654.64010227,0.00013,2]
[326687287,1715229047330,-331.18186634,0.00013,2]
[326687288,1715229047341,-8647.74262018,0.00013,2]
[326687289,1715229047353,-2518.85209956,0.00013,2]
[326687290,1715229047365,-1603.078,0.00013,2]
[326687291,1715229047380,-2218.45898703,0.00013,2]
[326687292,1715229047446,-458.09629476,0.00013,2]
[326687293,1715229047458,-660.69999998,0.00013,2]
[326687294,1715229047469,-618.39,0.00013,2]
[326687295,1715229047481,-16959.0331764,0.00013,2]
[326687296,1715229047492,-2215.15286082,0.00013,2]
[326687297,1715229047503,-10462.89910724,0.00013,2]
[326687298,1715229047515,-348.5255592,0.00013,2]
[326687299,1715229047527,-1145.62207892,0.00013,2]
[326687302,1715229091047,19744.57564094,0.00012287,2]
[326687310,1715229285430,-150.5,0.00019695,15]
[326687311,1715229285461,-150.5,0.00019705,15]
[326687312,1715229285492,-150.5,0.00019715,15]
[326687313,1715229285523,-235.33,0.00019715,15]
[326687352,1715230233530,-522.78326127,0.00012602,2]
[326687356,1715230233541,-739.52345426,0.00012603,2]
[326687360,1715230233551,-461.49702687,0.00012612,2]
[326687363,1715230233560,-3420.6901681,0.00012646,2]
[326687367,1715230233569,-455.2632041,0.00012899,2]
[326687370,1715230233581,-1137.94257999,0.00012899,2]
[326687373,1715230233590,-2217.28362404,0.00012899,2]
[326687376,1715230233600,-29030.240825,0.000129,2]
[326687379,1715230233609,-2780.80489764,0.000129,2]
[326687382,1715230233619,-1446.6348,0.000129,2]
[326687385,1715230233628,-170.22162873,0.000129,2]
[326687387,1715230233637,-324.9576443,0.000129,2]
[326687389,1715230233646,-173.57394587,0.000129,2]
[326687391,1715230233655,-161.42504938,0.000129,2]
[326687393,1715230233664,-989.53640548,0.00012986,2]
[326687395,1715230233674,-7506.04567181,0.00012998,2]
[326687397,1715230233683,-207.73564485,0.00012999,2]
[326687399,1715230233691,-5860.22628477,0.00012999,2]
[326687401,1715230233700,-315299.33698161,0.00013,2]
[326687404,1715230233713,-675.17501982,0.00013,2]
[326687406,1715230233724,-1487.82941497,0.00013,2]
[326687408,1715230233735,-689.36804504,0.00013,2]
[326687410,1715230233746,-420.85552698,0.00013,2]
[326687412,1715230233758,-1237.11715068,0.00013,2]
[326687415,1715230233768,-1485.3825767,0.00013,2]
[326687416,1715230233779,-1373.27,0.00013,2]
[326687432,1715230244034,-267.96563009,0.00012601,2]
[326687433,1715230244044,-3068.87671932,0.00012999,2]
[326687434,1715230244056,-2791.34956545,0.00012999,2]
[326687435,1715230244066,-9317.02967679,0.00013,2]
[326687436,1715230244134,-154.05499999,0.00013,2]
[326687437,1715230244145,-35997.65688495,0.00013,2]
[326687438,1715230248437,-490.93550515,0.00013,2]
[326687439,1715230248449,-10808.88434825,0.00013,2]
[326687440,1715230248461,-632.25287615,0.00013,2]
[326687441,1715230248472,-3389.83,0.00013,2]
[326687442,1715230248484,-335.30570427,0.00013,2]
[326687443,1715230248496,-273.31193874,0.00013,2]
[326687463,1715231079967,-522.78326127,0.00012894,2]
[326687464,1715231080826,-500.0,0.00012895,2]
[326687465,1715231080860,-500.0,0.00012896,2]
[326687466,1715231080890,-500.0,0.00012896,2]
[326687467,1715231081430,-2620.65472262,0.000129,2]
[326687468,1715231081460,-173.57394587,0.000129,2]
[326687469,1715231081490,-267.82879663,0.00012998,2]
[326687470,1715231081520,-783.62102359,0.00012998,2]
[326687471,1715231081550,-7500.03866897,0.00012998,2]
[326687472,1715231081579,-207.73564485,0.00012999,2]
[326687473,1715231081609,-2664.38541325,0.00012999,2]
[326687474,1715231083645,207.73564485,0.00012999,2]
[326687475,1715231093723,232.85357759,0.00012999,2]
[326687476,1715231094240,297.36598064,0.00012869,2]
[326687477,1715231099285,323.75400239,0.000129,2]
[326687478,1715231102165,13597.21793606,0.0001287,2]
[326687479,1715231116971,170.94053025,0.000129,2]
[326687480,1715231126391,522.78326127,0.00012999,2]
[326687481,1715231133514,-21914.7275899,0.00013,2]
[326687488,1715231435801,-419.4172,0.0001287,2]
[326687491,1715231435814,-2580.5828,0.0001287,2]
[326687493,1715231435823,-436.21157151,0.000129,2]
[326687495,1715231435833,-119.37213053,0.000129,2]
[326687597,1715231439814,-0.37551039,0.000129,2]
[326687598,1715231439826,-40.74221634,0.000129,2]
[326687599,1715231439836,-1576.55047366,0.000129,2]
[326687600,1715231439848,-999.858006,0.000129,2]
[326687601,1715231442158,-328.38063234,0.000129,2]
[326687605,1715231442170,-308.92815687,0.000129,2]
[326687609,1715231442181,-1858.50591285,0.000129,2]
[326687613,1715231442191,-183.5600075,0.00012998,2]
[326687615,1715231442200,-473.18643969,0.00012999,2]
[326687618,1715231442209,-142775.11277954,0.00012999,2]
[326687662,1715231445121,-61868.53371694,0.00012999,2]
[326687667,1715231445131,-1993712.91944322,0.00013,2]
[326687669,1715231445141,-207252.53111099,0.00013,2]
[326687672,1715231445151,-55932.69825871,0.00013,2]
[326687676,1715231445161,-7522.88420071,0.00013,2]
[326687678,1715231445170,-155.18883655,0.00013,2]
[326687680,1715231445180,-296.00404057,0.00013,2]
[326687681,1715231445190,-1844.154,0.00013,2]
[326687682,1715231445199,-151.0,0.00013,2]
[326687683,1715231445209,-151.0,0.00013,2]
[326687684,1715231445219,-151.0,0.00013,2]
[326687685,1715231445228,-151.0,0.00013,2]
[326687686,1715231445237,-1218.39789277,0.00013269,2]
[326687687,1715231445247,-1218.39789276,0.00013269,2]
[326687688,1715231445256,-200.0,0.00013699,2]
[326687689,1715231445265,-200.0,0.00013699,2]
[326687690,1715231445274,-200.0,0.00013699,2]
[326687691,1715231445284,-1000.0,0.00013699,2]
[326687692,1715231445294,-1000.0,0.00013699,2]
[326687693,1715231445303,-1000.0,0.00013699,2]
[326687694,1715231445313,-1000.0,0.00013699,2]
[326687695,1715231445323,-200.0,0.00013699,2]
[326687696,1715231445332,-200.0,0.00013699,2]
[326687697,1715231445342,-150.99,0.00014377,2]
[326687698,1715231445352,-419.95,0.000146,2]
[326687699,1715231445363,-523.05,0.000146,2]
[326687700,1715231445372,-701.54,0.000146,2]
[326687701,1715231445381,-473.73,0.000146,2]
[326687702,1715231445390,-2620.65472251,0.00015482,2]
[326687703,1715231445404,-250.0,0.00015642,2]
[326687704,1715231445414,-600.69,0.00015648,2]
[326687705,1715231445424,-167.27,0.00015707,2]
[326687706,1715231445433,-683.62,0.00015746,2]
[326687707,1715231445443,-170.12,0.00015762,2]
[326687708,1715231445452,-679.64,0.00015863,2]
[326687709,1715231445462,-250.0,0.00016059,2]
[326687710,1715231445472,-166.39,0.00016197,2]
[326687711,1715231445482,-23900.0,0.00016203,2]
[326687712,1715231445492,-151.0,0.00016204,2]
[326687713,1715231445501,-151.0,0.00016204,2]
[326687714,1715231445511,-151.0,0.00016204,2]
[326687715,1715231445521,-164.304153,0.00016204,2]
[326687716,1715231445534,-151.0,0.00016204,2]
[326687717,1715231445543,-151.0,0.00016204,2]
[326687718,1715231445553,-203.43,0.00016326,2]
[326687719,1715231445563,-1246.553018,0.00016344,2]
[326687720,1715231445572,-1246.553018,0.00016344,2]
[326687721,1715231445582,-155.03,0.00016349,2]
[326687722,1715231445592,-289.43,0.00016349,2]
[326687723,1715231445601,-157.08,0.00016705,2]
[326687724,1715231445611,-157.08,0.00016712,2]
[326687725,1715231445620,-157.08,0.00016719,2]
[326687726,1715231445630,-157.08,0.00016726,2]
[326687727,1715231445639,-157.08,0.00016733,2]
[326687728,1715231445649,-157.08,0.0001674,2]
[326687729,1715231445658,-157.08,0.00016747,2]
[326687730,1715231445668,-157.08,0.00016754,2]
[326687731,1715231445677,-157.08,0.00016761,2]
[326687732,1715231445687,-157.08,0.00016767,2]
[326687733,1715231445696,-157.08,0.00016774,2]
[326687734,1715231445706,-157.08,0.00016781,2]
[326687735,1715231445715,-157.08,0.00016788,2]
[326687736,1715231445726,-251.53,0.00016813,2]
[326687737,1715231445735,-150.0,0.00016813,2]
[326687738,1715231445745,-606.9,0.00016959,2]
[326687739,1715231445754,-179.24,0.00016979,2]
[326687740,1715231445764,-171.84,0.00017304,2]
[326687741,1715231445774,-906.0,0.00017666,2]
[326687742,1715231445784,-683.62,0.00017715,2]
[326687743,1715231445794,-679.64,0.00017846,2]
[326687744,1715231445806,-1246.553018,0.0001788,2]
[326687745,1715231445815,-1246.553018,0.0001788,2]
[326687746,1715231445825,-151.0,0.0001788,2]
[326687747,1715231445834,-179.295582,0.0001788,2]
[326687748,1715231445843,-237.551541,0.0001788,2]
[326687749,1715231445853,-163.522078,0.0001788,2]
[326687750,1715231445867,-170.498937,0.0001788,2]
[326687751,1715231445876,-2620.65472251,0.00018064,2]
[326687752,1715231445886,-552.35,0.00018541,2]
[326687753,1715231445895,-1246.553018,0.00018567,2]
[326687754,1715231445906,-1246.553018,0.00018567,2]
[326687755,1715231445915,-2550.0,0.00019,3]
[326687756,1715231445925,-151.01463172,0.00019178,2]
[326687757,1715231445935,-500.0,0.00019178,2]
[326687758,1715231445947,-500.0,0.00019178,2]
[326687759,1715231445958,-500.0,0.00019178,2]
[326687760,1715231445967,-500.0,0.00019178,2]
[326687761,1715231445976,-592.07513348,0.00019178,2]
[326687762,1715231445987,-500.0,0.00019178,2]
[326687763,1715231445996,-500.0,0.00019178,2]
[326687764,1715231446006,-500.0,0.00019178,2]
[326687765,1715231446015,-500.0,0.00019178,2]
[326687766,1715231446025,-175.0316693,0.00019178,2]
[326687767,1715231446034,-500.0,0.00019178,2]
[326687768,1715231446044,-500.0,0.00019178,2]
[326687769,1715231446053,-500.0,0.00019178,2]
[326687770,1715231446063,-500.0,0.00019178,2]
[326687771,1715231446073,-500.0,0.00019178,2]
[326687772,1715231446083,-500.0,0.00019178,2]
[326687773,1715231446092,-500.0,0.00019178,2]
[326687774,1715231446102,-500.0,0.00019178,2]
[326687775,1715231446112,-500.0,0.00019178,2]
[326687776,1715231446122,-500.0,0.00019178,2]
[326687777,1715231446131,-287.3010304,0.00019178,2]
[326687778,1715231446140,-235.18385589,0.00019178,2]
[326687779,1715231446149,-500.0,0.00019178,2]
[326687780,1715231446159,-500.0,0.00019178,2]
[326687781,1715231446168,-500.0,0.00019178,2]
[326687782,1715231446177,-500.0,0.00019178,2]
[326687783,1715231446186,-500.0,0.00019178,2]
[326687784,1715231446196,-500.0,0.00019178,2]
[326687785,1715231446205,-500.0,0.00019178,2]
[326687786,1715231446214,-500.0,0.00019178,2]
[326687787,1715231446224,-500.0,0.00019178,2]
[326687788,1715231446233,-500.0,0.00019178,2]
[326687789,1715231446243,-438.77546424,0.00019178,2]
[326687790,1715231446252,-500.0,0.00019178,2]
[326687791,1715231446261,-500.0,0.00019178,2]
[326687792,1715231446271,-500.0,0.00019178,2]
[326687793,1715231446280,-500.0,0.00019178,2]
[326687794,1715231446289,-500.0,0.00019178,2]
[326687795,1715231446299,-500.0,0.00019178,2]
[326687796,1715231446308,-151.0,0.00019178,2]
[326687797,1715231446318,-174.08,0.00019178,2]
[326687798,1715231446327,-153.81,0.00019178,2]
[326687799,1715231446336,-157.74,0.00019178,2]
[326687800,1715231446345,-156.31,0.00019178,2]
[326687801,1715231446355,-799.0,0.000192,3]
[326687802,1715231446366,-331.78,0.000192,2]
[326687803,1715231446376,-358.86,0.000192,2]
[326687804,1715231446385,-259.11,0.000192,2]
[326687805,1715231446394,-168.64637781,0.00019615,2]
[326687806,1715231446404,-683.62,0.00019683,2]
[326687807,1715231446414,-37438.12702625,0.00019715,2]
[326687808,1715231446423,-1042.23614951,0.00019715,2]
[326687809,1715231446433,-2000.0,0.00019715,2]
[326687810,1715231446442,-200.0,0.00019715,2]
[326687811,1715231446453,-1246.553018,0.00019715,2]
[326687812,1715231446462,-1246.553018,0.00019715,2]
[326687813,1715231446472,-151.0,0.00019715,2]
[326687814,1715231446481,-179.24,0.00019809,2]
[326687815,1715231446491,-679.64,0.00019829,2]
[326687816,1715231446500,-151.6200374,0.000199,2]
[326687817,1715231446510,-151.6200374,0.000199,2]
[326687818,1715231446520,-151.6200374,0.000199,2]
[326687819,1715231446530,-151.6200374,0.000199,2]
[326687820,1715231446541,-151.6200374,0.000199,2]
[326687821,1715231446550,-151.6200374,0.000199,2]
[326687822,1715231446560,-151.6200374,0.000199,2]
[326687823,1715231446570,-151.6200374,0.000199,2]
[326687824,1715231446579,-151.6200374,0.000199,2]
[326687825,1715231446588,-151.6200374,0.000199,2]
[326687826,1715231446598,-151.6200374,0.000199,2]
[326687827,1715231446607,-151.6200374,0.000199,2]
[326687828,1715231446617,-151.6200374,0.000199,2]
[326687829,1715231446626,-151.6200374,0.000199,2]
[326687830,1715231446636,-151.6200374,0.000199,2]
[326687831,1715231446645,-151.6200374,0.000199,2]
[326687832,1715231446655,-151.6200374,0.000199,2]
[326687833,1715231446664,-809.52464749,0.0002,2]
[326687834,1715231446674,-290.71420182,0.0002,2]
[326687835,1715231446683,-155.0,0.0002,2]
[326687836,1715231446693,-3735.00786065,0.0002,2]
[326687837,1715231446702,-6653.0,0.0002,2]
[326687838,1715231446712,-3950.0,0.0002,2]
[326687839,1715231446721,-2465.50074413,0.0002,2]
[326687840,1715231446731,-663.69191492,0.0002,2]
[326687841,1715231446740,-150.0,0.0002,2]
[326687842,1715231446749,-150.0,0.0002,2]
[326687843,1715231446759,-151.6200374,0.00020186,2]
[326687844,1715231446769,-166.39,0.00020246,2]
[326687845,1715231446778,-1000.0,0.00020425,2]
[326687846,1715231446788,-155.03,0.00020436,2]
[326687847,1715231446797,-1246.553018,0.00020456,2]
[326687848,1715231446807,-1246.553018,0.00020456,2]
[326687849,1715231446816,-499.99,0.00020546,2]
[326687850,1715231446826,-151.6200374,0.00020614,2]
[326687851,1715231446835,-2620.65472251,0.00020645,2]
[326687852,1715231446844,-1000.0,0.00020999,2]
[326687853,1715231446854,-1000.0,0.00021,2]
[326687854,1715231446868,-1000.0,0.00021,2]
[326687855,1715231446878,-1000.0,0.00021,2]
[326687856,1715231446887,-151.6200374,0.00021043,2]
[326687857,1715231446897,-170.94053024,0.000214,2]
[326687858,1715231446906,-436.21157151,0.000214,2]
[326687859,1715231446916,-5072.2231817,0.000214,2]
[326687860,1715231446925,-151.6200374,0.00021471,2]
[326687861,1715231446935,-331.78,0.000216,2]
[326687862,1715231446947,-683.62,0.00021651,2]
[326687863,1715231446963,-358.86,0.000217,2]
[326687864,1715231446977,-259.11,0.000217,2]
[326687865,1715231446988,-679.64,0.00021812,2]
[326687866,1715231446998,-151.6200374,0.000219,2]
[326687867,1715231447008,-250.0,0.00021918,2]
[326687868,1715231447018,-150.0,0.00022274,2]
[326687869,1715231447028,-150.0,0.00022274,2]
[326687871,1715231447038,-151.6200374,0.00022329,2]
[326687872,1715231447047,-151.0,0.00022344,7]
[326687873,1715231447057,-547.92392022,0.00022352,2]
[326687874,1715231447066,-264.24,0.00022411,2]
[326687875,1715231447076,-923.99,0.00022411,2]
[326687876,1715231447086,-179.24,0.00022639,2]
[326687877,1715231447096,-151.6200374,0.00022757,2]
[326687878,1715231447106,-154.53007627,0.00022877,2]
[326687879,1715231447115,-158.62,0.00022929,2]
[326687880,1715231447125,-1000.0,0.00023,3]
[326687881,1715231447135,-1246.553018,0.00023,7]
[326687882,1715231447145,-1246.553018,0.00023,7]
[326687883,1715231447154,-150.0,0.00023096,2]
[326687884,1715231447164,-151.6200374,0.00023186,2]
[326687885,1715231447174,-500.0,0.00023227,2]
[326687886,1715231447183,-500.0,0.00023227,2]
[326687887,1715231447193,-2620.65472251,0.00023227,2]
[326687888,1715231447202,-151.6200374,0.00023614,2]
[326687889,1715231447212,-683.62,0.00023619,2]
[326687890,1715231447222,-1056.852,0.00023729,2]
[326687891,1715231447231,-1000.0,0.00023759,2]
[326687892,1715231447241,-679.64,0.00023794,2]
[326687893,1715231447251,-358.86,0.000238,2]
[326687894,1715231447260,-259.11,0.000238,2]
[326687895,1715231447270,-1797.45,0.00023836,2]
[326687896,1715231447279,-868.27,0.00023836,2]
[326687897,1715231447289,-868.27,0.00023836,2]
[326687898,1715231447298,-152.77499497,0.00023935,2]
[326687899,1715231447307,-19609.38018864,0.00024,2]
[326687900,1715231447317,-1000.0,0.00024,3]
[326687901,1715231447326,-151.6200374,0.00024043,2]
[326687902,1715231447335,-331.78,0.000242,2]
[326687903,1715231447344,-180.0,0.0002423,2]
[326687904,1715231447354,-1246.553018,0.00024233,7]
[326687905,1715231447363,-1246.553018,0.00024233,7]
[326687906,1715231447373,-4890.04609624,0.00024233,2]
[326687907,1715231447382,-166.39,0.00024296,2]
[326687908,1715231447392,-151.6200374,0.00024471,2]
[326687909,1715231447401,-155.03,0.00024524,2]
[326687910,1715231447410,-1045.69,0.00024568,2]
[326687911,1715231447419,-361.74,0.00024568,2]
[326687912,1715231447429,-42122.72,0.000247,2]
[326687913,1715231447438,-153.70873279,0.00024794,2]
[326687914,1715231447447,-151.6200374,0.000249,2]
[326687915,1715231447457,-61181.64184219,0.00025,2]
[326687916,1715231447467,-613.38272614,0.00025,2]
[326687917,1715231447477,-1000.0,0.00025,4]
[326687918,1715231447486,-657.0,0.00025,2]
[326687919,1715231447496,-1246.553018,0.00025,7]
[326687920,1715231447505,-1246.553018,0.00025,7]
[326687921,1715231447515,-155.36406562,0.00025084,2]
[326687922,1715231447525,-303.37,0.00025205,2]
[326687923,1715231447536,-150.0,0.00025205,2]
[326687924,1715231447545,-868.27,0.00025233,2]
[326687925,1715231447555,-868.27,0.00025233,2]
[326687926,1715231447564,-155.20712655,0.00025376,2]
[326687927,1715231447573,-530.52,0.00025437,2]
[326687928,1715231447582,-301.41,0.00025437,2]
[326687929,1715231447592,-301.88,0.00025437,2]
[326687930,1715231447601,-150.47,0.00025437,2]
[326687931,1715231447612,-328.62,0.00025437,2]
[326687932,1715231447623,-300.0,0.00025437,2]
[326687933,1715231447632,-179.24,0.00025469,120]
[326687934,1715231447641,-154.53007627,0.00025494,2]
[326687935,1715231447651,-358.86,0.000256,2]
[326687936,1715231447660,-259.11,0.000256,2]
[326687937,1715231447669,-157.74,0.00025723,2]
[326687938,1715231447679,-2620.65472251,0.00025809,2]
[326687939,1715231447689,-158.84784853,0.00025864,2]
[326687940,1715231447698,-1000.0,0.00026,4]
[326687941,1715231447708,-720.0,0.00026,4]
[326687942,1715231447717,-150.0,0.00026027,2]
[326687943,1715231447726,-301.04,0.00026055,2]
[326687944,1715231447736,-331.78,0.000261,2]
[326687945,1715231447745,-1246.553018,0.00026122,7]
[326687946,1715231447754,-1246.553018,0.00026122,7]
[326687947,1715231447764,-4890.04609624,0.00026122,2]
[326687948,1715231447773,-868.27,0.00026192,2]
[326687949,1715231447782,-155.36406562,0.00026666,2]
[326687950,1715231447792,-2602.76758228,0.00026751,2]
[326687951,1715231447801,-150.0,0.000269,5]
[326687952,1715231447810,-155.0,0.00027,2]
[326687953,1715231447819,-1000.0,0.00027,4]
[326687954,1715231447829,-228.13660173,0.0002711,3]
[326687955,1715231447838,-881.63864581,0.00027254,2]
[326687969,1715231448530,-151.6200374,0.00025329,2]
[326687970,1715231448541,-151.6200374,0.00025757,2]
[326687971,1715231448550,-151.6200374,0.00026186,2]
[326687972,1715231448560,-151.6200374,0.00026614,2]
[326687973,1715231448569,-4048.13788281,0.00027254,2]
[326687974,1715231448580,-1000.0,0.00027254,2]
[326687985,1715232642338,-267.96563009,0.0001724,2]
[326687989,1715232642348,-183.5600075,0.00017241,2]
[326687992,1715232642357,-636.6456326,0.00017258,2]
[326687995,1715232642367,-760.0,0.000183,2]
[326687999,1715232642377,-126.65122981,0.00019178,2]
[326688003,1715232642389,-27.15877019,0.00019178,2]
[326688007,1715232642398,-791.87885092,0.00020668,2]
[326688010,1715232642408,-499.99,0.00020668,2]
[326688014,1715232642419,-237.89278451,0.00023802,2]
[326688018,1715232642429,-250.0,0.00024431,2]
[326688022,1715232642439,-200.0,0.00024523,2]
[326688026,1715232642448,-176.81919438,0.00024568,2]
[326688030,1715232642460,-73.18080562,0.00024568,2]
[326688034,1715232642469,-3075.19279601,0.00024705,2]
[326688038,1715232642480,-2232.5325917,0.00024705,2]
[326688043,1715232642491,-618.09,0.00024705,2]
[326688047,1715232642503,-452.98119335,0.00024705,2]
[326688052,1715232642514,-12592.9554049,0.00024705,2]
[326688055,1715232642525,-599.7,0.00024705,2]
[326688196,1715232645309,-37.92820268,0.00024705,2]
[326688202,1715232645319,-799.30282559,0.00024706,2]
[326688208,1715232645332,-603.79747538,0.00024706,2]
[326688214,1715232645344,-3168.81000003,0.00024706,2]
[326688219,1715232645356,-5862.51986911,0.00024706,2]
[326688243,1715232647967,-13465.56982989,0.00024706,2]
[326688245,1715232647976,-250.0,0.00024843,2]
[326688247,1715232647986,-241.19,0.00024846,2]
[326688249,1715232647995,-13661.60520922,0.00025785,2]
[326688251,1715232648007,-902.3587842,0.00025785,2]
[326688282,1715232658313,-190.31422761,0.00024458,2]
[326688283,1715232658323,-334.43079655,0.00025785,2]
[326688284,1715232658336,-359.85154904,0.00025785,2]
[326688285,1715232658347,-404.0,0.00025785,2]